[Event "Live Chess"]
[Site "Chess.com"]
[Date "2023.05.20"]
[Round "-"]
[White "Tushinskiy"]
[Black "apl_trainer"]
[Result "1-0"]
[WhiteElo "2117"]
[BlackElo "1595"]
[TimeControl "300"]
[EndTime "11:57:31 PDT"]
[Termination "Tushinskiy won on time"]

1. d4 {[%clk 0:04:57.9]} 1... Nf6 {[%clk 0:04:58.3]} 2. c3 {[%clk 0:04:57.8]}
2... c5 {[%clk 0:04:55.6]} 3. Nf3 {[%clk 0:04:56]} 3... d5 {[%clk 0:04:51.7]} 4.
Bf4 {[%clk 0:04:53.8]} 4... Qb6 {[%clk 0:04:50.2]} 5. Qc1 {[%clk 0:04:52.4]}
5... Nc6 {[%clk 0:04:43.2]} 6. e3 {[%clk 0:04:51.3]} 6... Bf5 {[%clk 0:04:37.4]}
7. Nbd2 {[%clk 0:04:48.9]} 7... e6 {[%clk 0:04:35.4]} 8. Nb3 {[%clk 0:04:47.6]}
8... c4 {[%clk 0:04:32.2]} 9. Nbd2 {[%clk 0:04:46.4]} 9... Rc8 {[%clk
0:04:21.4]} 10. Be2 {[%clk 0:04:44.9]} 10... Be7 {[%clk 0:04:19.7]} 11. O-O
{[%clk 0:04:43.9]} 11... O-O {[%clk 0:04:18.3]} 12. Bg3 {[%clk 0:04:42.7]} 12...
h6 {[%clk 0:04:06.1]} 13. Re1 {[%clk 0:04:41.5]} 13... Qa5 {[%clk 0:04:04]} 14.
Ne5 {[%clk 0:04:38.2]} 14... Nxe5 {[%clk 0:03:54.9]} 15. Bxe5 {[%clk 0:04:38.1]}
15... b5 {[%clk 0:03:53.4]} 16. a3 {[%clk 0:04:36.9]} 16... Qd8 {[%clk
0:03:42.9]} 17. Bf3 {[%clk 0:04:35.4]} 17... Nd7 {[%clk 0:03:38.5]} 18. Bg3
{[%clk 0:04:33.4]} 18... Nb6 {[%clk 0:03:34.6]} 19. e4 {[%clk 0:04:32.1]} 19...
Bg6 {[%clk 0:03:26.5]} 20. h3 {[%clk 0:04:27]} 20... Bg5 {[%clk 0:03:22.6]} 21.
Qd1 {[%clk 0:04:24.5]} 21... Na4 {[%clk 0:03:20.5]} 22. Rb1 {[%clk 0:04:22.8]}
22... a5 {[%clk 0:03:07]} 23. Kh2 {[%clk 0:04:19.8]} 23... Qf6 {[%clk 0:02:37]}
24. Be5 {[%clk 0:04:11.4]} 24... Qd8 {[%clk 0:02:31.4]} 25. g3 {[%clk
0:04:01.6]} 25... f6 {[%clk 0:02:26.3]} 26. Bf4 {[%clk 0:03:59.8]} 26... Bxf4
{[%clk 0:02:24.6]} 27. gxf4 {[%clk 0:03:59.7]} 27... e5 {[%clk 0:02:12.9]} 28.
f5 {[%clk 0:03:44.1]} 28... exd4 {[%clk 0:02:09.7]} 29. cxd4 {[%clk 0:03:40.3]}
29... c3 {[%clk 0:02:01.1]} 30. fxg6 {[%clk 0:03:32.8]} 30... c2 {[%clk
0:01:53]} 31. Qe2 {[%clk 0:03:31.3]} 31... cxb1=Q {[%clk 0:01:50.5]} 32. Rxb1
{[%clk 0:03:31.2]} 32... Rc2 {[%clk 0:01:44.5]} 33. Qd3 {[%clk 0:03:10.4]} 33...
Qc7+ {[%clk 0:01:41.4]} 34. Kg2 {[%clk 0:03:07.6]} 34... Nxb2 {[%clk 0:01:39.5]}
35. Qe3 {[%clk 0:03:00]} 35... dxe4 {[%clk 0:01:09.6]} 36. Nxe4 {[%clk
0:02:58.5]} 36... Nc4 {[%clk 0:01:01.1]} 37. Qb3 {[%clk 0:02:56.9]} 37... Kh8
{[%clk 0:00:51.5]} 38. Qxb5 {[%clk 0:02:44]} 38... Ne3+ {[%clk 0:00:44.9]} 39.
Kg1 {[%clk 0:02:41.5]} 39... Qf4 {[%clk 0:00:38.7]} 40. Qh5 {[%clk 0:02:31.7]}
40... Nf5 {[%clk 0:00:19.2]} 41. Qg4 {[%clk 0:02:22.9]} 41... Qxg4+ {[%clk
0:00:14.1]} 42. Bxg4 {[%clk 0:02:22.8]} 42... Nxd4 {[%clk 0:00:12.3]} 43. Nd6
{[%clk 0:02:21.1]} 43... f5 {[%clk 0:00:05.9]} 44. Bd1 {[%clk 0:02:12.2]} 44...
Rd2 {[%clk 0:00:04.1]} 45. Nf7+ {[%clk 0:02:10.1]} 45... Kg8 {[%clk 0:00:02.8]}
46. Ba4 {[%clk 0:02:07.7]} 46... Rxf7 {[%clk 0:00:00.4]} 47. gxf7+ {[%clk
0:02:06.4]} 1-0

[Event "Live Chess"]
[Site "Chess.com"]
[Date "2023.05.20"]
[Round "-"]
[White "ElectricFalcon"]
[Black "hturner40"]
[Result "0-1"]
[WhiteElo "1066"]
[BlackElo "1799"]
[TimeControl "300"]
[EndTime "11:57:35 PDT"]
[Termination "hturner40 won by resignation"]

1. d4 {[%clk 0:04:57.3]} 1... Nf6 {[%clk 0:04:57.9]} 2. c4 {[%clk 0:04:56.3]}
2... g6 {[%clk 0:04:55.5]} 3. Nf3 {[%clk 0:04:55.9]} 3... Bg7 {[%clk 0:04:54.5]}
4. Nc3 {[%clk 0:04:55.5]} 4... d5 {[%clk 0:04:53.4]} 5. Bg5 {[%clk 0:04:53.7]}
5... Ne4 {[%clk 0:04:52.2]} 6. Nxe4 {[%clk 0:04:52.4]} 6... dxe4 {[%clk
0:04:50.3]} 7. Nd2 {[%clk 0:04:50.2]} 7... Qxd4 {[%clk 0:04:47.3]} 8. Be3 {[%clk
0:04:48.9]} 8... Qxb2 {[%clk 0:04:45.1]} 9. Rb1 {[%clk 0:04:39.7]} 9... Qxa2
{[%clk 0:04:24.6]} 10. Bf4 {[%clk 0:04:28.4]} 10... Na6 {[%clk 0:04:16.5]} 11.
e3 {[%clk 0:04:26.3]} 11... Qa5 {[%clk 0:04:02.9]} 12. Be2 {[%clk 0:04:21.7]}
12... O-O {[%clk 0:03:52.6]} 13. O-O {[%clk 0:04:20.4]} 13... Rd8 {[%clk
0:03:39.9]} 14. Qc2 {[%clk 0:04:16.7]} 14... Qxd2 {[%clk 0:03:30]} 15. Qxd2
{[%clk 0:04:07.4]} 15... Rxd2 {[%clk 0:03:27.3]} 16. Rfe1 {[%clk 0:04:02.5]}
16... Be6 {[%clk 0:03:11.6]} 0-1

[Event "Live Chess"]
[Site "Chess.com"]
[Date "2023.05.20"]
[Round "-"]
[White "OceanFloater"]
[Black "tpm07"]
[Result "0-1"]
[WhiteElo "979"]
[BlackElo "1956"]
[TimeControl "300"]
[EndTime "11:57:39 PDT"]
[Termination "tpm07 won by resignation"]

1. e4 {[%clk 0:04:53.2]} 1... c5 {[%clk 0:04:57.6]} 2. Nf3 {[%clk 0:04:50.7]}
2... Nc6 {[%clk 0:04:56.3]} 3. c3 {[%clk 0:04:48.3]} 3... d5 {[%clk 0:04:53]} 4.
exd5 {[%clk 0:04:46.5]} 4... Qxd5 {[%clk 0:04:52.9]} 5. b3 {[%clk 0:04:40.3]}
5... Bg4 {[%clk 0:04:48.5]} 6. Bc4 {[%clk 0:04:38.6]} 6... Qd7 {[%clk
0:04:43.7]} 7. h3 {[%clk 0:04:30.6]} 7... Bh5 {[%clk 0:04:41.2]} 8. O-O {[%clk
0:04:27]} 8... e6 {[%clk 0:04:38.8]} 9. a3 {[%clk 0:04:16.9]} 9... Nf6 {[%clk
0:04:35.8]} 10. b4 {[%clk 0:04:15.9]} 10... Be7 {[%clk 0:04:30.8]} 11. b5 {[%clk
0:04:13.4]} 11... Na5 {[%clk 0:04:25.4]} 12. Ba2 {[%clk 0:04:09.3]} 12... O-O
{[%clk 0:04:23]} 13. a4 {[%clk 0:04:04.6]} 13... b6 {[%clk 0:04:09.8]} 14. Na3
{[%clk 0:04:02.9]} 14... Rad8 {[%clk 0:04:04.5]} 15. Nc4 {[%clk 0:03:58.6]}
15... Nxc4 {[%clk 0:03:59.6]} 16. Bxc4 {[%clk 0:03:56.8]} 16... Nd5 {[%clk
0:03:58.4]} 17. Ne5 {[%clk 0:03:52.5]} 17... Bxd1 {[%clk 0:03:50.7]} 18. Nxd7
{[%clk 0:03:50.3]} 18... Rxd7 {[%clk 0:03:47.4]} 19. Rxd1 {[%clk 0:03:48.7]}
19... Nxc3 {[%clk 0:03:39.7]} 20. Re1 {[%clk 0:03:42.8]} 20... Nd5 {[%clk
0:03:33.1]} 21. Bb2 {[%clk 0:03:38.4]} 21... Bf6 {[%clk 0:03:29.1]} 22. Bxf6
{[%clk 0:03:36.4]} 22... gxf6 {[%clk 0:03:24]} 23. d3 {[%clk 0:03:33.9]} 23...
Rfd8 {[%clk 0:03:19.2]} 24. Re2 {[%clk 0:03:20.3]} 24... Nf4 {[%clk 0:03:13.5]}
25. Re3 {[%clk 0:03:18.4]} 25... Nxd3 {[%clk 0:02:57.4]} 26. Bxd3 {[%clk
0:03:16.2]} 26... Rxd3 {[%clk 0:02:53.6]} 27. Rg3+ {[%clk 0:03:15]} 27... Rxg3
{[%clk 0:02:50.6]} 28. fxg3 {[%clk 0:03:14]} 28... Rd4 {[%clk 0:02:47.5]} 29.
Kf2 {[%clk 0:03:11.8]} 29... Kf8 {[%clk 0:02:39.6]} 30. Kf3 {[%clk 0:03:08.1]}
30... Ke7 {[%clk 0:02:37]} 31. g4 {[%clk 0:03:05.3]} 31... Kd6 {[%clk
0:02:34.6]} 32. Ra3 {[%clk 0:03:01.1]} 32... c4 {[%clk 0:02:32.3]} 33. h4 {[%clk
0:02:54.3]} 33... Kc5 {[%clk 0:02:28.6]} 34. Ke2 {[%clk 0:02:52.3]} 34... Kb4
{[%clk 0:02:26.4]} 35. Rf3 {[%clk 0:02:51.3]} 35... Rxg4 {[%clk 0:02:22.6]} 36.
Rxf6 {[%clk 0:02:48.3]} 36... Kxa4 {[%clk 0:02:19.7]} 37. Rxf7 {[%clk
0:02:47.1]} 37... Kxb5 {[%clk 0:02:17]} 38. Rxa7 {[%clk 0:02:45.5]} 38... Rxg2+
{[%clk 0:02:16.4]} 39. Kd1 {[%clk 0:02:43.2]} 39... Rg4 {[%clk 0:02:11.5]} 40.
Rxh7 {[%clk 0:02:41.2]} 40... Kb4 {[%clk 0:02:06.4]} 41. Kc2 {[%clk 0:02:39.2]}
41... Rg2+ {[%clk 0:02:03.7]} 42. Kc1 {[%clk 0:02:37.4]} 42... Kc3 {[%clk
0:02:02.1]} 43. Rf7 {[%clk 0:02:30.4]} 43... Rg1+ {[%clk 0:01:56.2]} 0-1

[Event "Live Chess"]
[Site "Chess.com"]
[Date "2023.05.20"]
[Round "-"]
[White "Tilbs_12"]
[Black "chessleanstrategist"]
[Result "1-0"]
[WhiteElo "1564"]
[BlackElo "400"]
[TimeControl "300"]
[EndTime "11:57:46 PDT"]
[Termination "Tilbs_12 won on time"]

1. e4 {[%clk 0:04:58.3]} 1... d6 {[%clk 0:04:58.1]} 2. d4 {[%clk 0:04:53.7]}
2... Nf6 {[%clk 0:04:57.7]} 3. Nc3 {[%clk 0:04:52.1]} 3... g6 {[%clk 0:04:57]}
4. f4 {[%clk 0:04:51.4]} 4... Nc6 {[%clk 0:04:55.6]} 5. Nf3 {[%clk 0:04:50.3]}
5... Bg7 {[%clk 0:04:54.4]} 6. Be3 {[%clk 0:04:47.9]} 6... O-O {[%clk
0:04:53.2]} 7. Bc4 {[%clk 0:04:37.6]} 7... Na5 {[%clk 0:04:49.4]} 8. Bd3 {[%clk
0:04:35.4]} 8... c5 {[%clk 0:04:45.1]} 9. e5 {[%clk 0:04:21.7]} 9... Nd7 {[%clk
0:04:40.7]} 10. O-O {[%clk 0:04:19.5]} 10... c4 {[%clk 0:04:16.2]} 11. Be4
{[%clk 0:04:11.9]} 11... e6 {[%clk 0:04:01.6]} 12. exd6 {[%clk 0:03:59.3]} 12...
f5 {[%clk 0:03:16.5]} 13. Bxf5 {[%clk 0:03:38.4]} 13... gxf5 {[%clk 0:02:48.1]}
14. b4 {[%clk 0:03:20.9]} 14... Nc6 {[%clk 0:02:35.4]} 15. a3 {[%clk 0:03:19.2]}
15... b5 {[%clk 0:02:29.2]} 16. Nxb5 {[%clk 0:03:13.5]} 16... a5 {[%clk
0:02:00.7]} 17. Nc7 {[%clk 0:03:08.8]} 17... Ra7 {[%clk 0:01:50.1]} 18. Nxe6
{[%clk 0:03:07.6]} 18... Qe8 {[%clk 0:01:36.8]} 19. Nfg5 {[%clk 0:02:44.6]}
19... Nf6 {[%clk 0:00:33.9]} 20. Re1 {[%clk 0:02:35.3]} 20... Rff7 {[%clk
0:00:19.4]} 21. Nxf7 {[%clk 0:02:27.2]} 21... Qxf7 {[%clk 0:00:18.9]} 22. d5
{[%clk 0:02:26.7]} 22... Bxe6 {[%clk 0:00:12]} 23. dxe6 {[%clk 0:02:23.2]} 23...
Qxe6 {[%clk 0:00:11.4]} 24. Bxa7 {[%clk 0:02:22.2]} 24... Qd7 {[%clk 0:00:05.7]}
25. Qe2 {[%clk 0:02:04.8]} 1-0

[Event "Live Chess"]
[Site "Chess.com"]
[Date "2023.05.20"]
[Round "-"]
[White "JohanKjeldahl"]
[Black "manthanit"]
[Result "1-0"]
[WhiteElo "1802"]
[BlackElo "944"]
[TimeControl "300"]
[EndTime "11:57:52 PDT"]
[Termination "JohanKjeldahl won by resignation"]

1. e4 {[%clk 0:04:57.4]} 1... e6 {[%clk 0:04:58.9]} 2. d4 {[%clk 0:04:55.1]}
2... d5 {[%clk 0:04:58.4]} 3. Nd2 {[%clk 0:04:52.2]} 3... c5 {[%clk 0:04:57.5]}
4. Ngf3 {[%clk 0:04:46.4]} 4... a6 {[%clk 0:04:56.7]} 5. exd5 {[%clk 0:04:41.8]}
5... exd5 {[%clk 0:04:55.6]} 6. c3 {[%clk 0:04:37.1]} 6... Nf6 {[%clk
0:04:50.2]} 7. Bd3 {[%clk 0:04:35.2]} 7... Nbd7 {[%clk 0:04:47.7]} 8. O-O {[%clk
0:04:33.2]} 8... Be7 {[%clk 0:04:47]} 9. dxc5 {[%clk 0:04:27.2]} 9... Nxc5
{[%clk 0:04:44.6]} 10. Bc2 {[%clk 0:04:26.2]} 10... O-O {[%clk 0:04:34.2]} 11.
b4 {[%clk 0:04:20.8]} 11... Ncd7 {[%clk 0:04:28.2]} 12. Nb3 {[%clk 0:04:16.8]}
12... b5 {[%clk 0:04:22.6]} 13. Nbd4 {[%clk 0:04:14.7]} 13... Bb7 {[%clk
0:04:17.9]} 14. Bf4 {[%clk 0:04:12.1]} 14... Rc8 {[%clk 0:04:12.3]} 15. Qd3
{[%clk 0:04:09]} 15... Bc6 {[%clk 0:02:46.1]} 16. Ng5 {[%clk 0:03:56.8]} 16...
g6 {[%clk 0:02:38.7]} 17. Rae1 {[%clk 0:03:48.7]} 17... a5 {[%clk 0:02:32.2]}
18. bxa5 {[%clk 0:03:38.9]} 18... Ne4 {[%clk 0:02:10.8]} 19. Nxc6 {[%clk
0:03:30.8]} 19... Rxc6 {[%clk 0:02:05.1]} 20. Nxe4 {[%clk 0:03:28.4]} 20... dxe4
{[%clk 0:02:01.5]} 21. Qxe4 {[%clk 0:03:27.3]} 21... Re6 {[%clk 0:01:52.5]} 22.
Qd5 {[%clk 0:03:17.8]} 22... Re8 {[%clk 0:01:36]} 23. Rxe6 {[%clk 0:03:15.3]}
23... fxe6 {[%clk 0:01:32.9]} 24. Qxe6+ {[%clk 0:03:14.1]} 24... Kh8 {[%clk
0:01:13.4]} 25. Re1 {[%clk 0:02:52.9]} 25... Nf8 {[%clk 0:00:59.5]} 26. Be5+
{[%clk 0:02:48.6]} 26... Bf6 {[%clk 0:00:58.3]} 27. Bxf6+ {[%clk 0:02:47.1]}
27... Qxf6 {[%clk 0:00:54.2]} 28. Qxf6+ {[%clk 0:02:46.1]} 28... Kg8 {[%clk
0:00:52.5]} 29. Bb3+ {[%clk 0:02:45.1]} 1-0

[Event "Live Chess"]
[Site "Chess.com"]
[Date "2023.05.20"]
[Round "-"]
[White "ProfPoisson"]
[Black "Greenbecker"]
[Result "0-1"]
[WhiteElo "1057"]
[BlackElo "1657"]
[TimeControl "300"]
[EndTime "11:57:54 PDT"]
[Termination "Greenbecker won by resignation"]

1. e4 {[%clk 0:04:54]} 1... e6 {[%clk 0:04:59.2]} 2. d4 {[%clk 0:04:51.3]} 2...
d5 {[%clk 0:04:58.7]} 3. e5 {[%clk 0:04:46.4]} 3... c5 {[%clk 0:04:57.3]} 4. c3
{[%clk 0:04:44.2]} 4... Nc6 {[%clk 0:04:55.4]} 5. Nf3 {[%clk 0:04:42.2]} 5...
Bd7 {[%clk 0:04:53.9]} 6. Bd3 {[%clk 0:04:38.3]} 6... cxd4 {[%clk 0:04:52.8]} 7.
O-O {[%clk 0:04:35.1]} 7... dxc3 {[%clk 0:04:50.5]} 8. Nxc3 {[%clk 0:04:32.8]}
8... Nge7 {[%clk 0:04:49.6]} 9. Nb5 {[%clk 0:04:25.5]} 9... Ng6 {[%clk
0:04:46.8]} 10. Bxg6 {[%clk 0:04:20.4]} 10... hxg6 {[%clk 0:04:44.8]} 11. Bg5
{[%clk 0:04:09.2]} 11... f6 {[%clk 0:04:39.7]} 12. exf6 {[%clk 0:03:56.5]} 12...
gxf6 {[%clk 0:04:35.3]} 13. Bf4 {[%clk 0:03:51.8]} 13... e5 {[%clk 0:04:30.5]}
14. Re1 {[%clk 0:03:48.7]} 14... Bg4 {[%clk 0:04:12.3]} 15. Qd3 {[%clk
0:03:20.9]} 15... Bxf3 {[%clk 0:03:56.8]} 16. Qxg6+ {[%clk 0:03:09.1]} 16... Ke7
{[%clk 0:03:54.6]} 17. gxf3 {[%clk 0:02:42.6]} 17... Rc8 {[%clk 0:03:25.9]} 18.
Rac1 {[%clk 0:02:33.7]} 18... Qe8 {[%clk 0:03:16.8]} 19. Rxc6 {[%clk 0:02:00]}
19... Qxg6+ {[%clk 0:03:13.2]} 20. Bg3 {[%clk 0:01:44]} 20... bxc6 {[%clk
0:03:10.3]} 21. Nd4 {[%clk 0:01:39.1]} 21... Kd7 {[%clk 0:03:01.6]} 22. Nb3
{[%clk 0:01:31.5]} 22... Bd6 {[%clk 0:02:50.8]} 0-1

[Event "Live Chess"]
[Site "Chess.com"]
[Date "2023.05.20"]
[Round "-"]
[White "HoarseyHorsey"]
[Black "McSlash1"]
[Result "0-1"]
[WhiteElo "1368"]
[BlackElo "2055"]
[TimeControl "300"]
[EndTime "11:57:56 PDT"]
[Termination "McSlash1 won by resignation"]

1. d4 {[%clk 0:04:59.1]} 1... Nf6 {[%clk 0:04:58.4]} 2. c4 {[%clk 0:04:58.3]}
2... g6 {[%clk 0:04:57.6]} 3. f3 {[%clk 0:04:56.8]} 3... d5 {[%clk 0:04:56.9]}
4. cxd5 {[%clk 0:04:55.6]} 4... Nxd5 {[%clk 0:04:56.8]} 5. e4 {[%clk 0:04:54.8]}
5... Nf6 {[%clk 0:04:56.4]} 6. Nc3 {[%clk 0:04:53.9]} 6... Bg7 {[%clk
0:04:55.9]} 7. Be3 {[%clk 0:04:49.5]} 7... O-O {[%clk 0:04:55.5]} 8. Qd2 {[%clk
0:04:48.7]} 8... c5 {[%clk 0:04:54]} 9. d5 {[%clk 0:04:47.6]} 9... e6 {[%clk
0:04:52.2]} 10. Bxc5 {[%clk 0:04:44.9]} 10... Re8 {[%clk 0:04:49.7]} 11. d6
{[%clk 0:04:38.9]} 11... Na6 {[%clk 0:04:46.3]} 12. Ba3 {[%clk 0:04:37.1]} 12...
Bf8 {[%clk 0:04:39.6]} 13. e5 {[%clk 0:04:35.9]} 13... Nd7 {[%clk 0:04:35.8]}
14. f4 {[%clk 0:04:34.4]} 14... Nb6 {[%clk 0:04:33.7]} 15. Nf3 {[%clk
0:04:29.3]} 15... Bd7 {[%clk 0:04:32.6]} 16. Bd3 {[%clk 0:04:16.3]} 16... Bc6
{[%clk 0:04:27.7]} 17. O-O {[%clk 0:04:14.4]} 17... Nd5 {[%clk 0:04:22.3]} 18.
Nd4 {[%clk 0:03:59.8]} 18... Qb6 {[%clk 0:04:17.4]} 19. Nxd5 {[%clk 0:03:38.1]}
19... Bxd5 {[%clk 0:04:01]} 20. Bc2 {[%clk 0:03:33.3]} 20... Red8 {[%clk
0:03:51.8]} 21. Kh1 {[%clk 0:03:31.2]} 21... Rac8 {[%clk 0:03:48.4]} 22. Rac1
{[%clk 0:03:24.3]} 22... Nc5 {[%clk 0:03:42.8]} 23. Nb5 {[%clk 0:02:56.8]} 23...
Qxb5 {[%clk 0:03:34.7]} 24. Bd3 {[%clk 0:02:50.2]} 0-1

[Event "Live Chess"]
[Site "Chess.com"]
[Date "2023.05.20"]
[Round "-"]
[White "TDCMF"]
[Black "LodeshChess"]
[Result "0-1"]
[WhiteElo "360"]
[BlackElo "986"]
[TimeControl "300"]
[EndTime "11:58:05 PDT"]
[Termination "LodeshChess won by checkmate"]

1. e4 {[%clk 0:04:58.9]} 1... c6 {[%clk 0:04:58.3]} 2. Nf3 {[%clk 0:04:55.4]}
2... d5 {[%clk 0:04:57.6]} 3. exd5 {[%clk 0:04:51.8]} 3... cxd5 {[%clk
0:04:57.1]} 4. d4 {[%clk 0:04:50.7]} 4... Bg4 {[%clk 0:04:56.5]} 5. Bf4 {[%clk
0:04:39.9]} 5... Nf6 {[%clk 0:04:47.4]} 6. h3 {[%clk 0:04:35.8]} 6... Bxf3
{[%clk 0:04:46.1]} 7. gxf3 {[%clk 0:04:34.6]} 7... Nc6 {[%clk 0:04:42.8]} 8. Nc3
{[%clk 0:04:32.2]} 8... e6 {[%clk 0:04:41.1]} 9. Nb5 {[%clk 0:04:25.9]} 9... Be7
{[%clk 0:04:39.5]} 10. Nc7+ {[%clk 0:04:22.6]} 10... Kf8 {[%clk 0:04:30.6]} 11.
Nxa8 {[%clk 0:04:19.8]} 11... Qxa8 {[%clk 0:04:30.2]} 12. Bd3 {[%clk 0:04:06]}
12... Nxd4 {[%clk 0:04:23.9]} 13. c3 {[%clk 0:03:51]} 13... Nc6 {[%clk
0:04:17.9]} 14. Qa4 {[%clk 0:03:43.4]} 14... Qc8 {[%clk 0:04:07.6]} 15. O-O-O
{[%clk 0:03:41]} 15... g6 {[%clk 0:03:50.8]} 16. Bh6+ {[%clk 0:03:24.4]} 16...
Ke8 {[%clk 0:03:45.4]} 17. Bb5 {[%clk 0:03:07.1]} 17... a6 {[%clk 0:03:35.6]}
18. Bxc6+ {[%clk 0:03:01.2]} 18... Qxc6 {[%clk 0:03:28.2]} 19. Qxc6+ {[%clk
0:02:56.3]} 19... bxc6 {[%clk 0:03:27.8]} 20. Bg7 {[%clk 0:02:46.2]} 20... Rg8
{[%clk 0:03:24.6]} 21. Bh6 {[%clk 0:02:41.7]} 21... Kd7 {[%clk 0:03:23.5]} 22.
Rd4 {[%clk 0:02:37]} 22... Rb8 {[%clk 0:03:18.8]} 23. b3 {[%clk 0:02:32.5]}
23... Bc5 {[%clk 0:03:10.1]} 24. Ra4 {[%clk 0:02:29.9]} 24... Rb6 {[%clk
0:02:57.5]} 25. Bg7 {[%clk 0:02:27]} 25... Nh5 {[%clk 0:02:48.5]} 26. Be5 {[%clk
0:02:14.9]} 26... Bxf2 {[%clk 0:02:42.9]} 27. Rf1 {[%clk 0:02:02.4]} 27... Be3+
{[%clk 0:02:41.8]} 28. Kd1 {[%clk 0:01:59.9]} 28... f6 {[%clk 0:02:40.5]} 29.
Bb8 {[%clk 0:01:38.1]} 29... c5 {[%clk 0:02:17.8]} 30. Re1 {[%clk 0:01:24.3]}
30... Bf4 {[%clk 0:02:07]} 31. b4 {[%clk 0:01:13.4]} 31... Bxb8 {[%clk
0:02:03.1]} 32. f4 {[%clk 0:01:03]} 32... Nxf4 {[%clk 0:01:46.3]} 33. Rf1 {[%clk
0:00:53]} 33... e5 {[%clk 0:01:35.1]} 34. h4 {[%clk 0:00:47.2]} 34... cxb4
{[%clk 0:01:31.2]} 35. cxb4 {[%clk 0:00:44.3]} 35... a5 {[%clk 0:01:27.4]} 36.
b5 {[%clk 0:00:39]} 36... Rxb5 {[%clk 0:01:24.3]} 37. Ra3 {[%clk 0:00:33.3]}
37... Rb1+ {[%clk 0:01:22]} 38. Kd2 {[%clk 0:00:30.7]} 38... Rxf1 {[%clk
0:01:21.6]} 39. Rxa5 {[%clk 0:00:29.2]} 39... Rf2+ {[%clk 0:01:15.9]} 40. Ke3
{[%clk 0:00:26.5]} 40... Re2+ {[%clk 0:01:12.1]} 41. Kf3 {[%clk 0:00:24.2]}
41... Rh2 {[%clk 0:01:01.3]} 42. a4 {[%clk 0:00:21.7]} 42... Rxh4 {[%clk
0:00:59.4]} 43. Rb5 {[%clk 0:00:18.6]} 43... Bc7 {[%clk 0:00:54.1]} 44. Rb7
{[%clk 0:00:17.1]} 44... Rh3+ {[%clk 0:00:53.1]} 45. Kg4 {[%clk 0:00:15.2]}
45... Ra3 {[%clk 0:00:51.8]} 46. a5 {[%clk 0:00:13]} 46... Rxa5 {[%clk
0:00:50.8]} 47. Rxc7+ {[%clk 0:00:10.8]} 47... Kxc7 {[%clk 0:00:49.3]} 48. Kf3
{[%clk 0:00:10.5]} 48... Ra3+ {[%clk 0:00:47.5]} 49. Kf2 {[%clk 0:00:08.6]}
49... d4 {[%clk 0:00:46]} 50. Ke1 {[%clk 0:00:07.9]} 50... d3 {[%clk 0:00:44.5]}
51. Kd2 {[%clk 0:00:07.2]} 51... Ra2+ {[%clk 0:00:43.2]} 52. Kc3 {[%clk
0:00:05.6]} 52... d2 {[%clk 0:00:42.4]} 53. Kc4 {[%clk 0:00:05.2]} 53... d1=Q
{[%clk 0:00:40.1]} 54. Kc5 {[%clk 0:00:05]} 54... Rc2+ {[%clk 0:00:38.9]} 55.
Kb4 {[%clk 0:00:04.6]} 55... Qb1+ {[%clk 0:00:38.5]} 56. Ka5 {[%clk 0:00:03.6]}
56... Ra2# {[%clk 0:00:37.9]} 0-1